bitfinex-derivatives/quotes_BTCF0:USTF0_20260131
["timestamp","ask_amount","ask_price","bid_price","bid_amount"]
[1769829418059,0.03849147,84252.0,84218.0,0.03698493]
[1769829418255,0.011889,84246.0,84220.0,0.03698493]
[1769829418558,0.03849147,84252.0,84222.0,0.03698493]
[1769829418559,0.01189,84244.0,84222.0,0.03698493]
[1769829419061,0.011889,84247.0,84224.0,0.03698493]
[1769829419958,0.011888,84251.0,84224.0,0.03698493]
[1769829420158,0.011888,84251.0,84227.0,0.03698493]
[1769829421456,0.011888,84246.0,84227.0,0.03698493]
[1769829422457,0.03849147,84250.0,84228.0,0.03698493]
[1769829422670,0.011888,84253.0,84228.0,0.03698493]
[1769829423353,0.03849147,84254.0,84228.0,0.03698493]
[1769829423557,0.011888,84247.0,84228.0,0.03698493]
[1769829424155,0.03849147,84254.0,84228.0,0.03698493]
[1769829424359,0.011888,84251.0,84228.0,0.03698493]
[1769829425457,0.03849147,84259.0,84228.0,0.03698493]
[1769829426553,0.107,84258.0,84228.0,0.03698493]
[1769829427354,0.011888,84252.0,84228.0,0.03698493]
[1769829428652,0.011887,84257.0,84231.0,0.03562207]
[1769829428860,0.011887,84257.0,84221.0,0.42016]
[1769829428861,0.011887,84255.0,84233.0,0.03562207]
[1769829429062,0.011887,84255.0,84235.0,0.03562207]
[1769829429365,0.011887,84255.0,84237.0,0.03562207]
[1769829429566,0.011887,84255.0,84239.0,0.03562207]
[1769829431553,0.118887,84258.0,84239.0,0.03562207]
[1769829432864,0.011887,84256.0,84239.0,0.03562207]
[1769829436673,0.107,84258.0,84239.0,0.03562207]
[1769829437971,0.011887,84257.0,84239.0,0.03562207]
[1769829438169,0.011887,84255.0,84239.0,0.03562207]
[1769829440676,0.04934982,84255.0,84239.0,0.03562207]
[1769829442882,0.03746282,84252.0,84238.0,0.107]
[1769829443076,0.03746282,84250.0,84238.0,0.107]
[1769829445582,0.011888,84249.0,84238.0,0.107]
[1769829446280,0.03746282,84250.0,84238.0,0.107]
[1769829447794,0.04935082,84249.0,84238.0,0.107]
[1769829448193,0.03746282,84249.0,84238.0,0.107]
[1769829449886,0.04935182,84242.0,84228.0,0.09422671]
[1769829450088,0.04935182,84242.0,84227.0,0.107]
[1769829450293,0.01189,84239.0,84225.0,0.14262207]
[1769829450586,0.03746282,84238.0,84225.0,0.107]
[1769829459596,0.011889,84242.0,84226.0,0.03874729]
[1769829459798,0.011889,84245.0,84226.0,0.03874729]
[1769829476305,0.011889,84245.0,84228.0,0.03874729]
[1769829477505,0.118888,84248.0,84228.0,0.03874729]
[1769829477909,0.011889,84246.0,84228.0,0.03874729]
[1769829495511,0.011889,84246.0,84230.0,0.03808045]
[1769829495811,0.011888,84249.0,84230.0,0.03808045]
[1769829496011,0.011889,84247.0,84230.0,0.03808045]
[1769829498711,0.011889,84242.0,84230.0,0.03808045]
[1769829499309,0.011889,84247.0,84230.0,0.03808045]
[1769829500311,0.03729158,84250.0,84230.0,0.03808045]
[1769829501612,0.011889,84247.0,84230.0,0.03808045]
[1769829502416,0.011889,84240.0,84230.0,0.03808045]
[1769829503210,0.011888,84244.0,84230.0,0.03808045]
[1769829503410,0.011889,84247.0,84230.0,0.03808045]
[1769829504613,0.011889,84240.0,84230.0,0.03808045]
[1769829505314,0.03729158,84250.0,84230.0,0.03808045]
[1769829507318,0.011888,84248.0,84230.0,0.03808045]
[1769829508308,0.011889,84245.0,84230.0,0.03808045]
[1769829515430,0.23727961,84261.0,84230.0,0.03808045]
[1769829515730,0.03729158,84261.0,84233.0,0.03808045]
[1769829515930,0.03729158,84261.0,84234.0,0.03808045]
[1769829516232,0.011888,84254.0,84234.0,0.03808045]
[1769829525737,0.011888,84251.0,84234.0,0.03808045]
[1769829542346,0.03846712,84250.0,84235.0,0.04028107]
[1769829542855,0.03846712,84250.0,84233.0,0.09422671]
[1769829543053,0.03846712,84250.0,84234.0,0.29513793]
[1769829543252,0.03846712,84250.0,84234.0,0.13450778]
[1769829543849,0.03846712,84250.0,84234.0,0.24150778]
[1769829544156,0.03846712,84250.0,84235.0,0.25513033]
[1769829544354,0.011888,84251.0,84236.0,0.04028107]
[1769829545155,0.011888,84251.0,84237.0,0.04028107]
[1769829545752,0.011888,84251.0,84237.0,0.13450778]
[1769829546266,0.011888,84251.0,84238.0,0.04028107]
[1769829549260,0.011887,84254.0,84238.0,0.04028107]
[1769829549463,0.011887,84254.0,84239.0,0.0389252]
[1769829549963,0.011887,84257.0,84239.0,0.0389252]
[1769829554061,0.011887,84257.0,84241.0,0.0389252]
[1769829555861,0.03798357,84264.0,84241.0,0.0389252]
[1769829556066,0.011887,84259.0,84241.0,0.0389252]
[1769829556468,0.011887,84259.0,84242.0,0.0389252]
[1769829559068,0.14498357,84268.0,84242.0,0.0389252]
[1769829559969,0.011887,84260.0,84242.0,0.0389252]
[1769829562971,0.011886,84264.0,84242.0,0.0389252]
[1769829563566,0.011886,84262.0,84242.0,0.0389252]
[1769829573275,0.011886,84265.0,84242.0,0.0508142]
[1769829573574,0.011886,84265.0,84244.0,0.0389252]
[1769829574672,0.011886,84265.0,84245.0,0.0389252]
[1769829576671,0.011886,84265.0,84247.0,0.03828264]
[1769829578180,0.14494357,84274.0,84247.0,0.03828264]
[1769829579082,0.011886,84262.0,84247.0,0.03828264]
[1769829579275,0.011885,84265.0,84247.0,0.03828264]
[1769829579475,0.011885,84265.0,84251.0,0.04025167]
[1769829579682,0.10696,84274.0,84251.0,0.04025167]
[1769829580285,0.011885,84266.0,84251.0,0.04025167]
[1769829580784,0.011885,84266.0,84252.0,0.04025167]
[1769829580979,0.011885,84266.0,84254.0,0.04025167]
[1769829581182,0.10696,84274.0,84254.0,0.04025167]
[1769829581183,0.011884,84272.0,84254.0,0.04025167]
[1769829581380,0.10696,84274.0,84254.0,0.04025167]
[1769829581885,0.10696,84285.0,84261.0,0.04025167]
[1769829582085,0.011884,84276.0,84261.0,0.04025167]
[1769829583087,0.011883,84279.0,84261.0,0.04025167]
[1769829594196,0.14546202,84285.0,84261.0,0.04025167]
[1769829594586,0.011884,84285.0,84263.0,0.04025167]
[1769829594788,0.011883,84289.0,84265.0,0.04025167]
[1769829595098,0.011883,84286.0,84265.0,0.04025167]
[1769829595398,0.03850202,84289.0,84265.0,0.04025167]
[1769829596102,0.03850202,84278.0,84264.0,0.10696]
[1769829601102,0.011884,84280.0,84264.0,0.14721167]
[1769829601802,0.05038602,84280.0,84264.0,0.14721167]
[1769829602103,0.03850202,84279.0,84264.0,0.14721167]
[1769829603106,0.011884,84280.0,84265.0,0.04025167]
[1769829604006,0.03850202,84279.0,84264.0,0.10696]
[1769829604207,0.03850202,84277.0,84264.0,0.10696]
[1769829605806,0.011884,84278.0,84264.0,0.10696]
[1769829606806,0.011884,84278.0,84264.0,0.14600435]
[1769829608505,0.011884,84278.0,84265.0,0.03904435]
[1769829610010,0.05038602,84281.0,84265.0,0.03904435]
[1769829614112,0.011884,84281.0,84265.0,0.03904435]
[1769829629524,0.03991989,84280.0,84264.0,0.10696]
[1769829629725,0.03991989,84276.0,84263.0,0.09422671]
[1769829630416,0.011885,84278.0,84263.0,0.13327106]
[1769829630618,0.03991989,84277.0,84263.0,0.09422671]
[1769829630818,0.03991989,84277.0,84261.0,0.09422671]
[1769829631723,0.03991989,84277.0,84261.0,0.13327106]
[1769829633220,0.03991989,84277.0,84257.0,0.14188743]
[1769829633221,0.03991989,84277.0,84260.0,0.09422671]
[1769829633418,0.03991989,84277.0,84258.0,0.09422671]
[1769829633719,0.03991989,84277.0,84259.0,0.03904435]
[1769829634122,0.011885,84273.0,84259.0,0.03904435]
[1769829642526,0.011885,84277.0,84259.0,0.03904435]
[1769829642730,0.011885,84275.0,84259.0,0.03904435]
[1769829642932,0.118845,84279.0,84259.0,0.03904435]
[1769829646826,0.011885,84279.0,84260.0,0.04096038]
[1769829652634,0.011885,84279.0,84261.0,0.04096038]
[1769829663842,0.011885,84279.0,84263.0,0.04096038]
[1769829665943,0.03999339,84282.0,84263.0,0.04096038]
[1769829667051,0.011884,84280.0,84263.0,0.04096038]
[1769829672257,0.011884,84280.0,84264.0,0.04091335]
[1769829673445,0.011884,84280.0,84266.0,0.04091335]
[1769829679652,0.05056251,84280.0,84265.0,0.10696]
[1769829680849,0.03867851,84279.0,84265.0,0.10696]
[1769829681051,0.011885,84278.0,84265.0,0.10696]
[1769829681445,0.05056351,84276.0,84265.0,0.10696]
[1769829681850,0.011885,84276.0,84265.0,0.10696]
[1769829682653,0.011885,84276.0,84265.0,0.14787335]
[1769829683052,0.011885,84276.0,84266.0,0.04091335]
[1769829689257,0.011884,84280.0,84266.0,0.04091335]
[1769829699271,0.04917106,84280.0,84265.0,0.10696]
[1769829699874,0.04917106,84280.0,84265.0,0.14542073]
[1769829700173,0.04917106,84280.0,84266.0,0.03846073]
[1769829700875,0.03728706,84279.0,84265.0,0.10696]
[1769829701472,0.03728706,84279.0,84265.0,0.14542073]
[1769829701675,0.011884,84280.0,84265.0,0.14542073]
[1769829702378,0.011884,84280.0,84266.0,0.03846073]
[1769829706977,0.011885,84278.0,84265.0,0.10696]
[1769829707182,0.011885,84278.0,84264.0,0.10696]
[1769829708779,0.011885,84276.0,84262.0,0.10696]
[1769829708980,0.011885,84276.0,84262.0,0.14542073]
[1769829709175,0.011885,84276.0,84263.0,0.03846073]
[1769829709683,0.011885,84276.0,84262.0,0.10696]
[1769829710379,0.011885,84276.0,84262.0,0.14542073]
[1769829711383,0.04917206,84276.0,84262.0,0.10696]
[1769829711584,0.04917206,84276.0,84257.0,0.03846073]
[1769829711585,0.011885,84274.0,84259.0,0.03846073]
[1769829716686,0.011885,84274.0,84260.0,0.03846073]
[1769829728601,0.011885,84278.0,84261.0,0.03956918]
[1769829731804,0.011885,84276.0,84261.0,0.03956918]
[1769829734406,0.10696,84280.0,84261.0,0.03956918]
[1769829735002,0.011885,84276.0,84261.0,0.03956918]
[1769829743014,0.05,84291.0,84261.0,0.03956918]
[1769829743515,0.09053615,84291.0,84261.0,0.03956918]
[1769829743714,0.09053615,84291.0,84263.0,0.03956918]
[1769829744416,0.09053615,84291.0,84264.0,0.03956918]
[1769829745016,0.011884,84284.0,84264.0,0.03956918]
[1769829745418,0.011884,84284.0,84265.0,0.03956918]
[1769829756326,0.011884,84284.0,84266.0,0.10696]
[1769829756623,0.011884,84284.0,84267.0,0.03956918]
[1769829772939,0.011884,84284.0,84269.0,0.03795357]
[1769829777732,0.011884,84284.0,84270.0,0.10696]
[1769829777937,0.011884,84284.0,84271.0,0.03795357]
[1769829780233,0.011885,84277.0,84270.0,0.10696]
[1769829781132,0.011884,84280.0,84270.0,0.10696]
[1769829781332,0.05210851,84280.0,84270.0,0.10696]
[1769829782234,0.011884,84280.0,84270.0,0.10696]
[1769829782539,0.011884,84280.0,84266.0,0.10696]
[1769829782739,0.05210851,84280.0,84266.0,0.10696]
[1769829783839,0.05210851,84280.0,84266.0,0.14491357]
[1769829784238,0.05210851,84280.0,84260.0,0.14188743]
[1769829784239,0.04022451,84277.0,84263.0,0.09469533]
[1769829784538,0.04022451,84276.0,84259.0,3.3e-07]
[1769829784744,0.04022451,84276.0,84255.0,0.10696]
[1769829784745,0.011887,84262.0,84255.0,0.10696]
[1769829787645,0.05211051,84267.0,84255.0,0.10696]
[1769829787845,0.011886,84265.0,84255.0,0.10696]
[1769829788041,0.011886,84265.0,84255.0,0.14815362]
[1769829788244,0.011886,84265.0,84256.0,0.04119362]
[1769829789550,0.011886,84265.0,84255.0,0.10696]
[1769829790847,0.011886,84265.0,84255.0,0.14815362]
[1769829791945,0.011886,84265.0,84256.0,0.04119362]
[1769829793748,0.011886,84269.0,84256.0,0.04119362]
[1769829794849,0.011885,84271.0,84256.0,0.04119362]
[1769829795355,0.011885,84275.0,84256.0,0.04119362]
[1769829795548,0.011885,84276.0,84256.0,0.04119362]
[1769829796954,0.011884,84279.0,84256.0,0.04119362]
[1769829800755,0.011885,84277.0,84256.0,0.04119362]
[1769829801347,0.03895136,84276.0,84256.0,0.04119362]
[1769829803758,0.03895136,84274.0,84256.0,0.04119362]
[1769829804959,0.011885,84273.0,84256.0,0.04119362]
[1769829806755,0.05083636,84273.0,84256.0,0.04119362]
[1769829808755,0.05083636,84271.0,84256.0,0.04119362]
[1769829811259,0.03895136,84270.0,84255.0,0.10696]
[1769829811559,0.011885,84271.0,84256.0,0.04119362]
[1769829811753,0.03895136,84270.0,84256.0,0.04119362]
[1769829812466,0.011885,84271.0,84256.0,0.04119362]
[1769829814060,0.011885,84275.0,84256.0,0.04119362]
[1769829814262,0.011884,84278.0,84256.0,0.04119362]
[1769829825275,0.011885,84272.0,84256.0,0.04119362]
[1769829826170,0.011884,84276.0,84256.0,0.04119362]
[1769829826676,0.04024769,84276.0,84256.0,0.04119362]
[1769829827077,0.011885,84273.0,84256.0,0.04119362]
[1769829834377,0.04024769,84272.0,84256.0,0.04119362]
[1769829834583,0.04024769,84268.0,84255.0,0.10696]
[1769829838083,0.011886,84269.0,84255.0,0.10696]
[1769829838688,0.011886,84269.0,84255.0,0.1476024]
[1769829838981,0.011886,84269.0,84256.0,0.0406424]
[1769829839882,0.05213269,84272.0,84256.0,0.0406424]
[1769829840284,0.011885,84272.0,84256.0,0.0406424]
[1769829840585,0.011885,84276.0,84256.0,0.0406424]
[1769829844482,0.011885,84276.0,84256.0,0.13535546]
[1769829844687,0.011885,84276.0,84257.0,0.0406424]
[1769829847992,0.011885,84274.0,84257.0,0.0406424]
[1769829850188,0.011885,84274.0,84259.0,0.04149914]
[1769829859513,0.011885,84278.0,84259.0,0.04149914]
[1769829859714,0.011884,84281.0,84259.0,0.04149914]
[1769829860013,0.118844,84284.0,84259.0,0.05338614]
[1769829860216,0.118844,84284.0,84260.0,0.04149914]
[1769829861112,0.011884,84284.0,84260.0,0.04149914]
[1769829861315,0.011884,84284.0,84261.0,0.04149914]
[1769829861515,0.011884,84284.0,84263.0,0.04149914]
[1769829870608,0.011883,84288.0,84263.0,0.04149914]
[1769829870811,0.011884,84285.0,84263.0,0.04149914]
[1769829873321,0.011883,84288.0,84264.0,0.04149914]
[1769829878019,0.011883,84288.0,84266.0,0.03931444]
[1769829878321,0.10696,84290.0,84267.0,0.03931444]
[1769829878520,0.118843,84290.0,84267.0,0.03931444]
[1769829883815,0.16067765,84290.0,84267.0,0.03931444]
[1769829885924,0.04183465,84289.0,84267.0,0.03931444]
[1769829886425,0.011883,84288.0,84267.0,0.03931444]
[1769829886623,0.05371765,84288.0,84267.0,0.03931444]
[1769829887128,0.011884,84283.0,84267.0,0.03931444]
[1769829888423,0.011883,84286.0,84267.0,0.03931444]
[1769829888611,0.10696,84290.0,84265.0,0.10696]
[1769829888612,0.011884,84282.0,84265.0,0.10696]
[1769829888816,0.04183465,84281.0,84265.0,0.10696]
[1769829895828,0.04183465,84281.0,84265.0,0.14540386]
[1769829899337,0.04183465,84280.0,84265.0,0.10696]
[1769829899938,0.04183465,84278.0,84265.0,0.10696]
[1769829901037,0.04183465,84276.0,84265.0,0.10696]
[1769829901434,0.04183465,84274.0,84265.0,0.10696]
[1769829901635,0.04183465,84272.0,84265.0,0.094437]
[1769829901836,0.011885,84273.0,84265.0,0.094437]
[1769829902343,0.011885,84273.0,84258.0,0.13315692]
[1769829902344,0.011886,84271.0,84258.0,0.03844386]
[1769829902541,0.011886,84268.0,84255.0,0.59896]
[1769829903039,0.011886,84268.0,84255.0,0.63740386]
[1769829903239,0.011886,84268.0,84256.0,0.03844386]
[1769829904340,0.011886,84266.0,84256.0,0.03844386]
[1769829911041,0.011886,84269.0,84256.0,0.03844386]
[1769829911241,0.011886,84267.0,84256.0,0.03844386]
[1769829918856,0.011886,84260.0,84255.0,8.6e-07]
[1769829919455,0.011886,84263.0,84255.0,8.6e-07]
[1769829920555,0.011885,84266.0,84255.0,8.6e-07]
[1769829920856,0.011885,84266.0,84256.0,0.04105703]
[1769829925371,0.011885,84270.0,84256.0,0.04105703]
[1769829925559,0.011885,84268.0,84256.0,0.04105703]
[1769829930267,0.010635,84268.0,84256.0,0.04105703]
[1769829949280,0.011885,84265.0,84252.0,0.20169044]
[1769829949479,0.011886,84262.0,84252.0,0.2505896]
[1769829949680,0.011886,84258.0,84247.0,0.04889916]
[1769829956885,0.04600427,84264.0,84247.0,0.04889916]
[1769829957185,0.04600427,84262.0,84247.0,0.04889916]
[1769829959082,0.011886,84258.0,84247.0,0.04889916]
[1769829962179,0.011886,84258.0,84244.0,0.10696]
[1769829962375,0.05789027,84258.0,84244.0,0.10696]
[1769829963182,0.011886,84258.0,84244.0,0.15585916]
[1769829963988,0.011886,84258.0,84245.0,0.04889916]
[1769829976893,0.011888,84244.0,84232.0,0.14188743]
[1769829977097,0.011888,84244.0,84230.0,0.05064937]
[1769829988309,0.011888,84247.0,84230.0,0.05064937]
[1769829988516,0.011886,84257.0,84236.0,0.05064937]
[1769829988714,0.23727961,84272.0,84243.0,0.05064937]
[1769829988913,0.23727961,84272.0,84242.0,0.011888]
[1769829988914,0.011885,84264.0,84245.0,0.05064937]
[1769829990108,0.011886,84261.0,84245.0,0.05064937]
[1769830004121,0.011886,84261.0,84246.0,0.10696]
[1769830004320,0.051857,84267.0,84246.0,0.10696]
[1769830004625,0.06090029,84256.0,84246.0,0.10696]
[1769830004821,0.06090029,84256.0,84242.0,0.05204918]
[1769830006124,0.04901329,84256.0,84238.0,0.05204918]
[1769830006323,0.04901329,84256.0,84214.0,0.29559881]
[1769830006324,0.04901329,84250.0,84234.0,0.05204918]
[1769830008024,0.011888,84246.0,84234.0,0.05204918]
[1769830012316,0.011887,84250.0,84234.0,0.05204918]
[1769830012517,0.011888,84249.0,84234.0,0.05204918]
[1769830021035,0.04901329,84257.0,84234.0,0.05204918]
[1769830021440,0.011888,84244.0,84234.0,0.05204918]
[1769830024147,0.04901329,84246.0,84225.0,0.05204918]
[1769830024336,0.01189,84235.0,84222.0,0.05204918]
[1769830024634,0.01189,84232.0,84222.0,0.05204918]
[1769830027848,0.01189,84232.0,84218.0,0.05059917]
[1769830028944,0.01189,84229.0,84218.0,0.05059917]
[1769830029151,0.011891,84225.0,84211.0,0.107]
[1769830031245,0.011891,84225.0,84212.0,0.05059917]
[1769830031941,0.011891,84222.0,84212.0,0.05059917]
[1769830032339,0.011892,84219.0,84212.0,1.7e-07]
[1769830032544,0.04888964,84226.0,84211.0,1.7e-07]
[1769830032842,0.04888964,84226.0,84195.0,0.52277276]
[1769830032843,0.04888964,84226.0,84199.0,0.107]
[1769830033243,0.011893,84211.0,84199.0,0.107]
[1769830033440,0.011893,84209.0,84199.0,0.107]
[1769830034542,0.011893,84209.0,84200.0,0.04893683]
[1769830036745,0.011893,84209.0,84199.0,0.107]
[1769830053962,0.04888964,84216.0,84199.0,0.107]
[1769830055058,0.011893,84210.0,84199.0,0.107]
[1769830058160,0.011893,84210.0,84195.0,0.71512]
[1769830059763,0.011893,84208.0,84195.0,0.71512]
[1769830060161,0.011893,84208.0,84195.0,0.80993276]
[1769830061163,0.011893,84208.0,84196.0,0.09481276]
[1769830062063,0.011893,84208.0,84197.0,0.09481276]
[1769830063063,0.011893,84208.0,84198.0,0.09481276]
[1769830066859,0.011893,84208.0,84197.0,0.09481276]
[1769830076873,0.011893,84208.0,84195.0,0.71512]
[1769830077473,0.011893,84208.0,84195.0,0.60808]
[1769830080381,0.011893,84211.0,84195.0,0.60808]
[1769830080584,0.05734966,84211.0,84195.0,0.60808]
[1769830080975,0.011893,84209.0,84195.0,0.60808]
[1769830082582,0.0454955,84209.0,84195.0,0.60808]
[1769830082787,0.011894,84204.0,84195.0,0.60808]
[1769830082979,0.011894,84200.0,84194.0,0.10704]
[1769830083291,0.04554001,84205.0,84186.0,0.6227482]
[1769830083985,0.011895,84196.0,84186.0,0.6227482]
[1769830087788,0.011895,84193.0,84186.0,0.6227482]
[1769830088787,0.011895,84193.0,84186.0,2e-07]
[1769830089892,0.0001414,84192.0,84186.0,2e-07]
[1769830097198,0.011895,84193.0,84186.0,2e-07]
[1769830101811,0.00208,84241.0,84186.0,2e-07]
[1769830101812,0.011895,84197.0,84186.0,2e-07]
[1769830102011,0.04549911,84206.0,84186.0,2e-07]
[1769830102012,0.04549911,84210.0,84186.0,2e-07]
[1769830103004,0.011894,84200.0,84186.0,2e-07]
[1769830114019,0.011895,84197.0,84186.0,2e-07]
[1769830117512,0.011895,84197.0,84186.0,0.1070402]
[1769830118721,0.0453137,84204.0,84186.0,0.1070402]
[1769830119021,0.011895,84197.0,84186.0,0.1070402]
[1769830120622,0.0453137,84204.0,84186.0,0.1070402]
[1769830121519,0.011895,84198.0,84186.0,0.1070402]
[1769830121823,0.0453137,84204.0,84186.0,0.1070402]
[1769830122022,0.011895,84198.0,84186.0,0.1070402]
[1769830122926,0.0453137,84204.0,84186.0,0.1070402]
[1769830124023,0.011895,84198.0,84186.0,0.1070402]
[1769830140137,0.0453137,84204.0,84186.0,0.1070402]
[1769830141340,0.0453137,84204.0,84187.0,0.10704]
[1769830141535,0.011894,84204.0,84187.0,0.10704]
[1769830141730,0.011894,84205.0,84187.0,0.10704]
[1769830142542,0.011894,84205.0,84187.0,0.20226792]
[1769830142735,0.011894,84205.0,84189.0,0.09522792]
[1769830143451,0.10704,84208.0,84189.0,0.09522792]
[1769830143950,0.011894,84205.0,84189.0,0.09522792]
[1769830144348,0.011894,84205.0,84188.0,0.09522792]
[1769830148055,0.011894,84205.0,84187.0,0.20226792]
[1769830150859,0.011894,84202.0,84188.0,0.09522792]
[1769830151160,0.011894,84205.0,84188.0,0.09522792]
[1769830151763,0.011894,84205.0,84187.0,0.20226792]
[1769830156964,0.10704,84216.0,84187.0,0.20226792]
[1769830157260,0.04552911,84215.0,84187.0,0.20226792]
[1769830157464,0.04552911,84215.0,84188.0,0.09522792]
[1769830158051,0.011893,84207.0,84188.0,0.09522792]
[1769830166164,0.011893,84207.0,84189.0,0.09522792]
[1769830166868,0.011893,84207.0,84187.0,0.10704]
[1769830169171,0.011893,84207.0,84188.0,0.10704]
[1769830172274,0.011894,84205.0,84188.0,0.10704]
[1769830173974,0.011894,84205.0,84189.0,0.10704]
[1769830176871,0.011894,84205.0,84190.0,0.09513548]
[1769830177372,0.04550159,84210.0,84190.0,0.09513548]
[1769830178786,0.04555352,84214.0,84190.0,0.09513548]
[1769830178974,0.011893,84208.0,84190.0,0.09513548]
[1769830179173,0.04555352,84207.0,84190.0,0.09513548]
[1769830181181,0.04555352,84207.0,84191.0,0.10704]
[1769830183485,0.011894,84206.0,84191.0,0.10704]
[1769830185985,0.011894,84206.0,84192.0,0.10704]
[1769830186885,0.04555352,84207.0,84192.0,0.10704]
[1769830187085,0.011894,84206.0,84192.0,0.10704]
[1769830189486,0.04555352,84207.0,84192.0,0.10704]
[1769830190088,0.011894,84206.0,84192.0,0.10704]
[1769830190683,0.04555352,84207.0,84192.0,0.10704]
[1769830190991,0.011894,84206.0,84193.0,0.10704]
[1769830191185,0.04550364,84211.0,84193.0,0.10704]
[1769830192087,0.011894,84206.0,84193.0,0.10704]
[1769830195592,0.011894,84206.0,84194.0,0.10704]
[1769830196986,0.04539497,84209.0,84194.0,0.10704]
[1769830197990,0.011894,84206.0,84194.0,0.10704]
[1769830198289,0.04539497,84209.0,84194.0,0.10704]
[1769830198491,0.10704,84217.0,84194.0,0.10704]
[1769830198894,0.011893,84208.0,84194.0,0.10704]
[1769830200389,0.011893,84208.0,84195.0,0.10704]
[1769830204898,0.13721639,84217.0,84195.0,0.10704]
[1769830205104,0.011893,84211.0,84195.0,0.10704]
[1769830205402,0.011892,84214.0,84195.0,0.10704]
[1769830205604,0.011892,84214.0,84195.0,0.20217548]
[1769830205899,0.011892,84217.0,84195.0,0.20217548]
[1769830206105,0.42028,84229.0,84198.0,0.09513548]
[1769830206106,0.03016436,84228.0,84198.0,0.09513548]
[1769830206399,0.011891,84222.0,84197.0,0.09513548]
[1769830206906,0.011891,84222.0,84198.0,0.60833548]
[1769830207405,0.011892,84220.0,84198.0,0.60833548]
[1769830207598,0.011892,84218.0,84198.0,0.60833548]
[1769830207799,0.03028497,84217.0,84198.0,0.60833548]
[1769830208306,0.03028497,84217.0,84198.0,0.5132]
[1769830208605,0.03028497,84217.0,84198.0,0.60833548]
[1769830209197,0.03028497,84217.0,84198.0,0.5132]
[1769830213294,0.03015258,84213.0,84198.0,0.5132]
[1769830214004,0.011893,84212.0,84198.0,0.5132]
[1769830214790,0.03017374,84211.0,84198.0,0.5132]
[1769830215596,0.011893,84212.0,84198.0,0.5132]
[1769830220311,0.03017374,84215.0,84198.0,0.5132]
[1769830220605,0.011892,84214.0,84198.0,0.5132]
[1769830229510,0.011892,84217.0,84198.0,0.5132]
[1769830229712,0.01189,84231.0,84203.0,0.011894]
[1769830229909,0.01189,84231.0,84206.0,0.011894]
[1769830230106,0.01189,84231.0,84207.0,0.10704]
[1769830230815,0.01189,84228.0,84207.0,0.10704]
[1769830231712,0.01189,84228.0,84207.0,0.20208667]
[1769830232220,0.01189,84228.0,84207.0,0.10704]
[1769830234613,0.01189,84232.0,84207.0,0.10704]
[1769830236725,0.01189,84230.0,84207.0,0.10704]
[1769830237423,0.01189,84233.0,84208.0,0.011893]
[1769830239119,0.03022142,84236.0,84207.0,0.10704]
[1769830239314,0.03022142,84233.0,84207.0,0.10704]
[1769830241021,0.01189,84231.0,84207.0,0.10704]
[1769830242426,0.01189,84234.0,84207.0,0.118933]
[1769830242913,0.10704,84238.0,84207.0,0.118933]
[1769830242914,0.03030463,84231.0,84207.0,0.118933]
[1769830243110,0.04219463,84230.0,84207.0,0.118933]
[1769830243720,0.01189,84230.0,84207.0,0.118933]
[1769830246928,0.01189,84230.0,84207.0,0.21397967]
[1769830247427,0.0303424,84226.0,84207.0,0.20208667]
[1769830247726,0.011891,84225.0,84207.0,0.10704]
[1769830249626,0.01189,84229.0,84207.0,0.10704]
[1769830252330,0.01189,84229.0,84207.0,0.20208667]
[1769830252835,0.011891,84227.0,84207.0,0.20208667]
[1769830255328,0.011891,84227.0,84208.0,0.09504667]
[1769830256931,0.011891,84227.0,84209.0,0.09504667]
[1769830258226,0.011891,84227.0,84210.0,0.09504667]
[1769830258830,0.011891,84227.0,84211.0,0.107]
[1769830259236,0.011891,84227.0,84211.0,0.20204667]
[1769830260935,0.01189,84233.0,84213.0,0.09504667]
[1769830261136,0.01189,84233.0,84214.0,0.09504667]
[1769830262136,0.00442469,102790.0,84211.0,0.24888743]
[1769830262137,0.011889,84241.0,84215.0,0.09504667]
[1769830262333,0.011889,84238.0,84217.0,0.09504667]
[1769830263131,0.011889,84238.0,84219.0,0.09504667]
[1769830265126,0.011889,84238.0,84218.0,0.09504667]
[1769830266939,0.011889,84238.0,84214.0,0.56800667]
[1769830267733,0.011889,84238.0,84215.0,0.09504667]
[1769830271144,0.011889,84238.0,84215.0,0.10693867]
[1769830273741,0.011889,84238.0,84217.0,0.011892]
[1769830276840,0.011889,84238.0,84219.0,0.09504667]
[1769830282050,0.011889,84241.0,84219.0,0.09504667]
[1769830283050,0.011889,84239.0,84219.0,0.09504667]
[1769830284153,0.011889,84239.0,84220.0,0.107]
[1769830285155,0.011889,84239.0,84220.0,0.20204667]
[1769830285756,0.03037556,84238.0,84220.0,0.20204667]
[1769830286953,0.03037556,84238.0,84220.0,0.107]
[1769830287349,0.011889,84239.0,84220.0,0.107]
[1769830287952,0.03041007,84250.0,84220.0,0.107]
[1769830288148,0.03041007,84250.0,84222.0,0.09504667]
[1769830288454,0.04229707,84250.0,84225.0,0.09504667]
[1769830288656,0.011888,84248.0,84226.0,0.3336]
[1769830290261,0.04229367,84248.0,84226.0,0.3336]
[1769830290461,0.03040567,84247.0,84226.0,0.3336]
[1769830290862,0.011888,84246.0,84226.0,0.3336]
[1769830291360,0.011888,84246.0,84226.0,0.42864667]
[1769830296958,0.011888,84246.0,84228.0,0.09504667]
[1769830300266,0.011888,84246.0,84229.0,0.107]
[1769830309271,0.03045527,84238.0,84223.0,0.09504667]
[1769830309465,0.03045527,84238.0,84224.0,0.107]
[1769830309762,0.01189,84232.0,84220.0,0.09504667]
[1769830309967,0.03045527,84237.0,84220.0,0.09504667]
[1769830315173,0.03045527,84237.0,84221.0,0.09504667]
[1769830316575,0.011889,84240.0,84221.0,0.09504667]
[1769830316775,0.04259672,84240.0,84221.0,0.09504667]
[1769830316976,0.03070772,84239.0,84226.0,0.09504667]
[1769830318476,0.03070772,84239.0,84224.0,0.09504667]
[1769830318679,0.03070772,84244.0,84225.0,0.09504667]
[1769830319970,0.03071404,84242.0,84225.0,0.09504667]
[1769830321674,0.011888,84243.0,84225.0,0.09504667]
[1769830321875,0.03066396,84242.0,84225.0,0.09504667]
[1769830322976,0.03067773,84240.0,84225.0,0.09504667]
[1769830323279,0.03067773,84240.0,84224.0,0.09504667]